Cogmind - Beta 15 @@@ ROGUE MODE // 2025.07.25 @ 08:39:48 Player: StaticNoob Result: Destroyed by H-66 Slayer with Heavy Assault Rifle Performance ------------- Evolutions (4) 2000 Regions Visited (9) 1800 Robots Destroyed (148) 740 Value Destroyed (4218) 4218 Prototype IDs (23) 460 Alien Tech Used (0) 0 Bonus (849) 849 TOTAL SCORE: 10067 Bonus ------- High Alert Combat Kills 70 Registered with UFD 300 Met Optimus in HQ 500 Friendly Fire -21 Cogmind --------- Core Integrity 0/850 Matter 285/300 Energy 146/150 System Corruption 1% Temperature Cool (2) Movement Walking (190) Ox1 Location -6/Factory Parts ------- > --- POWER (1) -------- Light Angular Momentum Engine > --- PROPULSION (6) --- Carbon-fiber Leg Carbon-fiber Leg Carbon-fiber Leg Flexi-carbon Leg Compact Wheel > --- UTILITY (6) ------ Large Storage Unit Advanced Signal Interpreter Thermal Shield A0-MCA's Component Scanner > --- WEAPON (2) ------- Wave Gun Heavy Plasma Cannon > --- INVENTORY (15) --- Light Nuclear Core Light Fission Core Large Storage Unit Compact Battery (200) Energy Well (350) High-capacity Matter Pod (200) Advanced Sensor Array Improved Terrain Scanner Experimental Terrain Scan Processor Advanced Targeting Computer Particle Charger Proton Cannon Proton Cannon Nova Cannon Improved Remote Datajack Peak State ------------ > --- POWER ------------ Light Fission Core > --- PROPULSION ------- Armored Medium Treads Carbon-fiber Leg Flexi-carbon Leg Thunder Leg Wheel Compact Wheel > --- UTILITY ---------- Advanced Heat Sink Large Storage Unit Improved Sensor Array Advanced Signal Interpreter Improved Light Armor Plating A0-MCA's Component Scanner > --- WEAPON ----------- Phase Cannon Heavy Plasma Cannon > --- INVENTORY -------- Light Fission Core Improved Heat Sink Large Storage Unit Compact Battery Energy Well High-capacity Matter Pod Improved Terrain Scanner Experimental Terrain Scan Processor Advanced Targeting Computer Particle Charger Thermal Shield Wave Gun Proton Cannon Nova Cannon Improved Remote Datajack [Rating: 69] Favorites ----------- Power Heavy Ion Engine Engine Heavy Ion Engine Power Core Light Fission Core Propulsion Light Treads Treads Light Treads Leg Flexi-carbon Leg Wheel Wheel Hover Unit Backup Propulsion III Flight Unit Xenon Bombardment Thruster Utility High-capacity Storage Unit Device Seismic Detector Storage High-capacity Storage Unit Processor Visual Processing Unit Protection Light Armor Plating Weapon Advanced Beam Rifle Energy Gun Advanced Beam Rifle Energy Cannon Heavy Plasma Cannon Ballistic Gun Heavy Assault Rifle Ballistic Cannon Light Cannon Launcher Rocket Launcher Special Weapon Improved Remote Datajack Special Melee Weapon Datajack Build | -11 -10 -10 -9 -9 -9 -9 -6 -6 -6 ------- Run | Yrd Mat Min Mat Sto Rec Scr Fac Was Fac Slots Evolved 8 | . . . 2 . . . 6 . . Power . | . . . . . . . . . . Propulsion 4 | . . . . . . . 4 . . Utility 4 | . . . 2 . . . 2 . . Weapon . | . . . . . . . . . . Parts Attached 130 | 6 9 11 34 . 4 2 20 9 35 Power 12 | 1 1 1 3 . . 1 2 . 3 Engine 8 | 1 1 . 3 . . 1 1 . 1 Core 4 | . . 1 . . . . 1 . 2 Reactor . | . . . . . . . . . . Propulsion 43 | 2 1 5 9 . 2 . 9 2 13 Treads 19 | 2 . . 5 . 2 . 6 . 4 Leg 9 | . . 2 . . . . . 2 5 Wheel 14 | . 1 3 4 . . . 3 . 3 Hover . | . . . . . . . . . . Flight 1 | . . . . . . . . . 1 Utility 41 | 1 2 2 12 . 2 . 6 3 13 Device 19 | 1 1 . 5 . 1 . 2 . 9 Storage 4 | . 1 1 1 . . . . . 1 Processor 8 | . . 1 3 . . . 2 . 2 Hackware . | . . . . . . . . . . Protection 10 | . . . 3 . 1 . 2 3 1 Artifact . | . . . . . . . . . . Weapon 34 | 2 5 3 10 . . 1 3 4 6 Energy Gun 12 | 2 3 . 4 . . . . 2 1 Energy Cannon 5 | . . . . . . 1 . . 4 Ballistic Gun 7 | . 1 2 4 . . . . . . Ballistic Cannon 4 | . 1 . 1 . . . . 2 . Launcher 4 | . . 1 1 . . . 2 . . Special Weapon 1 | . . . . . . . . . 1 Impact Weapon . | . . . . . . . . . . Slashing Weapon . | . . . . . . . . . . Piercing Weapon . | . . . . . . . . . . Special Melee Weapon 1 | . . . . . . . 1 . . Unidentified Prototypes 3 | . . . 3 . . . . . . Corrupted Parts 1 | . 1 . . . . . . . . System Corruption 1 | . 1 . . . . . . . . Parts Lost 57 | . 7 4 7 . 2 . 18 3 16 Power 4 | . . . 2 . . . 1 . 1 Propulsion 28 | . 2 2 1 . 2 . 11 1 9 Utility 15 | . 1 1 3 . . . 4 2 4 Weapon 10 | . 4 1 1 . . . 2 . 2 Highest Loss Streak 8 | . 3 4 2 . 1 . 8 2 4 To Critical Strikes . | . . . . . . . . . . Average Backups 14 | 1 5 13 16 18 17 19 16 5 7 Power . | . 1 3 . 1 1 1 . . . Propulsion 2 | . . . 3 3 3 3 . . . Utility 4 | . 2 3 2 4 4 6 7 3 4 Weapon 5 | . 1 5 7 8 8 7 6 1 2 Tool/Special . | . . . . . . . . . . Unused Backups 36 | . . . 9 . 3 4 3 4 13 Power 3 | . . . 3 . . . . . . Propulsion 4 | . . . 2 . 1 . 1 . . Utility 16 | . . . 1 . 1 1 2 1 10 Weapon 11 | . . . 3 . . 3 . 2 3 Tool/Special 2 | . . . . . 1 . . 1 . Average Slot Usage (%) 93 | . 94 89 95 100 99 100 93 53 81 Engine 8 | . 14 1 8 11 11 11 4 4 2 Core 1 | . . 12 1 . . . 1 . 3 Treads 15 | . 19 . 11 11 21 22 31 . 3 Leg 1 | . . 2 . . . . . . 8 Wheel 5 | . 6 19 10 11 . . 2 . 7 Device 16 | . 13 4 11 22 22 22 19 1 15 Storage 9 | . 12 14 11 11 11 11 6 . 2 Processor 5 | . . 6 11 . . . 5 13 13 Protection 7 | . . . 7 11 11 11 6 12 4 Energy Gun 10 | . 18 . 7 22 22 13 7 6 . Energy Cannon 3 | . . . . . . 8 3 . 10 Ballistic Gun 4 | . 2 22 12 . . . . . . Ballistic Cannon 1 | . 5 4 1 . . . . 2 . Peak Build Rating 69 | 6 10 12 22 20 21 26 48 40 69 Average Rating 25 | 4 8 10 16 20 20 23 42 33 54 On Entrance 17 | . 6 9 12 20 20 21 26 34 30 Naked Turns . | . . . . . . . . . . Heaviest Build 71 | 8 31 47 57 57 58 67 71 49 50 Greatest Support 130 | 40 40 20 40 16 40 40 130 16 40 Greatest Overweight (x) 17 | . 9 8 16 3 3 1 17 16 3 Average Overweight (x) 1 | . 1 1 4 3 1 1 . . . Largest Inventory Capacity 20 | 5 15 20 20 20 20 20 20 20 15 Average Capacity 17 | 5 14 15 20 20 20 20 20 5 9 Most Carried 20 | 2 13 20 20 20 20 20 20 14 15 Average Carried 15 | 1 5 13 19 20 19 19 16 5 7 Final Capacity 20 | 5 15 20 20 20 20 20 20 5 15 Final Carried 20 | 2 13 20 20 20 20 20 14 5 15 Class Distribution -------------------- 63% | Mutant 36% | Scavenger-Mutant Dominant Class ---------------- Mutant | -10/Materials Mutant | -10/Mines Scavenger-Mutant | -9/Materials Mutant | -9/Storage Mutant | -9/Recycling Mutant | -9/Scraptown Scavenger-Mutant | -6/Factory Mutant | -6/Waste Scavenger-Mutant | -6/Factory Resources | -11 -10 -10 -9 -9 -9 -9 -6 -6 -6 ----------- Run | Yrd Mat Min Mat Sto Rec Scr Fac Was Fac Matter Collected 3575 | 79 507 213 1409 40 30 30 248 200 819 Remotely . | . . . . . . . . . . Salvage Created 5267 | 12 615 298 1741 266 406 . 604 . 1325 Parts 293 | 1 29 20 130 12 16 . 30 . 55 Haulers Intercepted 8 | . 1 . 5 1 . . . . 1 Recyclers Shooed 3 | . . 1 1 . . . . . 1 Parts Field Recycled . | . . . . . . . . . . Retrieved Matter . | . . . . . . . . . . Parts Self-Destructed . | . . . . . . . . . . Prevented . | . . . . . . . . . . Kills | -11 -10 -10 -9 -9 -9 -9 -6 -6 -6 ------- Run | Yrd Mat Min Mat Sto Rec Scr Fac Was Fac Combat Hostiles Destroyed 98 | . 12 7 36 6 3 . 14 . 20 Melee 1 | . . . . . . . 1 . . Guns 47 | . 9 3 23 6 3 . 3 . . Cannons 28 | . 1 1 5 . . . 3 . 18 AOE 19 | . 1 3 8 . . . 7 . . Classes Destroyed 13 | 1 3 3 4 . . . 1 . 1 Worker 14 | . . 4 4 . . . 3 . 3 Builder 5 | . . . 3 . . . 1 . 1 Tunneler 3 | 1 . . 2 . . . . . . Hauler 8 | . 1 . 5 1 . . . . 1 Recycler 8 | . . 1 2 . 4 . 1 . . Operator 5 | . . . 3 . . . . . 2 Watcher 7 | . 3 . 3 . . . 1 . . Swarmer 27 | . . 3 12 3 . . 7 . 2 Grunt 39 | . 12 4 14 . . . 3 . 6 Duelist 1 | . . . 1 . . . . . . Sentry 21 | . . . 9 3 3 . 2 . 4 Hunter 4 | . . . . . . . . . 4 Programmer 6 | . . . . . . . 2 . 4 Best Kill Streak 11 | 1 3 5 8 4 3 . 11 . 6 Combat Bots Only 7 | . 3 3 5 4 1 . 7 . 6 Max Kills in Single Turn 4 | 1 1 3 4 1 1 . 2 . 1 Gunslinging . | . . . . . . . . . . Exploded 2 | . 1 2 2 . . . 2 . . Melee 1 | . . . . . . . 1 . . Uniques/NPCs Destroyed . | . . . . . . . . . . Combat | -11 -10 -10 -9 -9 -9 -9 -6 -6 -6 -------- Run | Yrd Mat Min Mat Sto Rec Scr Fac Was Fac Hostile Shots Fired 813 | . 89 31 170 17 18 . 236 5 247 Missed 248 | . 28 10 52 7 4 . 65 2 80 Hits 565 | . 61 21 118 10 14 . 171 3 167 Melee 3 | . . . . . . . . 3 . Projectile 562 | . 61 21 118 10 14 . 171 . 167 Critical Strikes 12 | . 1 . 2 . . . 3 2 4 Part Disruptions 1 | . . . . . . . 1 . . Damage Taken 7569 | . 836 348 1385 124 211 . 2357 136 2172 Core 1299 | . 157 11 227 6 45 . 315 136 402 Absorbed by Shields 9 | . . . . . . . 9 . . Ignored by Resistances 211 | . . . . . . . . . 211 Regen/Repaired (Parts) 285 | . . . 285 . . . . . . Core Remaining (%) 54 | 100 . 32 . . . 30 . . . Volleys Fired 449 | 6 74 25 153 14 17 . 53 20 87 Largest 2 | 2 2 2 2 2 2 . 2 2 2 Hottest 175 | 100 100 50 122 122 122 . 151 150 175 Shots Fired 812 | 12 121 47 295 28 34 . 87 40 148 Gun 523 | 12 107 28 242 28 34 . 52 20 . Cannon 261 | . 14 16 46 . . . 24 20 141 Launcher 21 | . . 3 7 . . . 11 . . Special 7 | . . . . . . . . . 7 Kinetic 326 | . 22 44 240 . . . . 20 . Thermal 441 | 12 82 . 48 28 34 . 76 20 141 Explosive 21 | . . 3 7 . . . 11 . . Electromagnetic 17 | . 17 . . . . . . . . Robot Hit Streak 16 | 11 16 10 14 6 8 . 9 5 8 Robot Miss Streak 7 | . 3 5 5 1 3 . 7 5 3 Penetration Max . | . . . . . . . . . . Secondary Targets 5 | . 2 1 2 . . . . . . Max Gunslinging Chain 1 | . 1 1 1 . . . . . . Shots Hit Robots 504 | 11 76 30 183 17 21 . 57 22 87 Core Hits 234 | 2 28 25 83 7 7 . 39 1 42 Critical Kills 1 | . . . . . . . . . 1 Critical Parts Destroyed 1 | . . . . . . . . 1 . Critical Strikes 25 | 1 10 . 4 2 2 . 4 1 1 Burn 19 | 1 9 . 1 2 2 . 4 . . Meltdown 1 | . . . . . . . . . 1 Destroy 1 | . . . . . . . . 1 . Blast 4 | . 1 . 3 . . . . . . Melee Attacks 3 | . . . . . . . 3 . . Impact . | . . . . . . . . . . Slashing . | . . . . . . . . . . Piercing . | . . . . . . . . . . Sneak Attacks 2 | . . . . . . . 2 . . Combat Hostiles . | . . . . . . . . . . Follow-up Attacks . | . . . . . . . . . . Damage Inflicted 12364 | 137 1075 616 3709 360 440 . 2595 646 2786 Guns 5509 | 137 832 167 2377 360 440 . 855 341 . Cannons 4657 | . 157 181 644 . . . 584 305 2786 Explosions 2179 | . 86 268 673 . . . 1152 . . Melee . | . . . . . . . . . . Ramming 19 | . . . 15 . . . 4 . . Kinetic 3402 | . 188 348 2561 . . . . 305 . Thermal 6798 | 137 750 85 460 360 440 . 1439 341 2786 Explosive 2008 | . . 183 673 . . . 1152 . . Electromagnetic 137 | . 137 . . . . . . . . Impact . | . . . . . . . . . . Slashing . | . . . . . . . . . . Piercing . | . . . . . . . . . . Highest Corruption 4 | . 1 1 . . . . 2 2 4 Average Corruption 1 | . 1 1 . . . . 2 2 2 Corruption Purged 4 | . . . . . . . . . 4 Corruption Blocked . | . . . . . . . . . . Effects 13 | . 1 4 . . . . . 3 5 Message Errors 2 | . . . . . . . . 1 1 Matter Fused 5 | . 1 1 . . . . . 1 2 Heat Flow Errors 2 | . . . . . . . . 1 1 Parts Rejected 1 | . . 1 . . . . . . . Data Loss (major) 1 | . . 1 . . . . . . . Misfires 2 | . . 1 . . . . . . 1 Overload Shots . | . . . . . . . . . . Overflow Damage 228 | . 18 . 25 . . . 112 . 73 Projectiles 135 | . 4 . 9 . . . 49 . 73 Explosions 93 | . 14 . 16 . . . 63 . . Melee . | . . . . . . . . . . Knockbacks 12 | . 3 2 7 . . . . . . Impact . | . . . . . . . . . . Kinetic 12 | . 3 2 7 . . . . . . Secondary . | . . . . . . . . . . Self-Inflicted Damage 124 | . . 59 18 . . . 47 . . Shots 5 | . . 2 1 . . . 2 . . Rammed 4 | . . . 4 . . . . . . Targets Rammed 5 | . . . 4 . . . 1 . . Kicked . | . . . . . . . . . . Crushed 1 | . . . . . . . 1 . . Highest Temperature 481 | 234 276 63 165 150 225 . 420 408 481 Average Temperature 92 | 122 83 19 39 53 76 . 99 189 72 Received Heat Transfer 2127 | . 462 144 474 27 63 . 501 . 456 Effects 14 | . 3 . . . . . . 4 7 Shutdowns 3 | . . . . . . . . 1 2 Energy Bleed 3 | . . . . . . . . 2 1 Interference 5 | . 3 . . . . . . . 2 Matter Decay 2 | . . . . . . . . . 2 Short Circuit 1 | . . . . . . . . 1 . Siege Activations . | . . . . . . . . . . Martial Activations . | . . . . . . . . . . Shielding Activations . | . . . . . . . . . . Robots Disrupted . | . . . . . . . . . . Combat Hostiles . | . . . . . . . . . . Robots Corrupted . | . . . . . . . . . . Combat Hostiles . | . . . . . . . . . . Parts Fried . | . . . . . . . . . . Impact Corruptions . | . . . . . . . . . . Robots Melted 3 | . 1 . . . . . . . 2 Combat Hostiles 3 | . 1 . . . . . . . 2 Parts Melted 32 | . 4 . 2 4 2 . 6 . 14 Heat Transferred 12821 | 481 2704 150 925 814 962 . 2625 592 3568 Parts Sabotaged . | . . . . . . . . . . Parts Stolen . | . . . . . . . . . . Parts Stripped . | . . . . . . . . . . Power Chain Reactions 2 | . 1 . . . . . . . 1 Alert | -11 -10 -10 -9 -9 -9 -9 -6 -6 -6 ------- Run | Yrd Mat Min Mat Sto Rec Scr Fac Was Fac Maximum Alert Level 2 | . . . 2 1 . . 1 . 1 Low Security (%) 68 | 100 100 100 20 27 100 . 80 100 97 Level 1 16 | . . . 37 72 . . 19 . 2 Level 2 14 | . . . 41 . . . . . . Level 3 . | . . . . . . . . . . Level 4 . | . . . . . . . . . . Level 5 . | . . . . . . . . . . High Security . | . . . . . . . . . . Max Security . | . . . . . . . . . . Peak Influence 562 | 5 109 129 562 373 157 . 238 49 206 Initial 137 | . . . 10 104 137 . . 49 . Average 145 | . 42 42 329 281 40 . 53 5 44 Influence Increases 3731 | 5 372 249 1207 369 253 . 509 14 753 Destroy 0b10 Robot/C 1960 | . 240 140 720 120 60 . 280 . 400 Destroy 0b10 Robot/NC 245 | 5 20 25 110 5 20 . 30 . 30 Destroy Leader 510 | . 68 30 196 42 . . 62 . 112 Successful Hack 170 | . 14 . 37 21 23 . . . 75 Select Force Hacks 200 | . . . . . 150 . . . 50 Disable Machine 180 | . 30 30 15 15 . . 45 . 45 Anti-Garrison Action 150 | . . . . 150 . . . . . Destroy Structure 196 | . . 24 54 1 . . 62 14 41 Partial Spotted 15 | . . . . 15 . . . . . Lose Combat Pursuer 105 | . . . 75 . . . 30 . . Influence Decreases 3533 | 5 372 221 986 265 606 . 369 154 555 Entered New Map 470 | . . . 18 145 216 . . 91 . Time Decay 2268 | 5 312 211 598 120 380 . 188 41 413 Lost Part 463 | . 60 10 70 . 10 . 171 10 132 Lost Ally 32 | . . . . . . . 10 12 10 Purge Threat 300 | . . . 300 . . . . . . Squads Dispatched 23 | . 4 . 3 3 . . 2 . 11 Investigation 8 | . 2 . . . . . . . 6 Extermination 4 | . . . . . . . 1 . 3 Reinforcement 9 | . 2 . 3 1 . . 1 . 2 Assault 2 | . . . . 2 . . . . . Garrison . | . . . . . . . . . . Intercept . | . . . . . . . . . . Searches Triggered . | . . . . . . . . . . Construction Impeded . | . . . . . . . . . . Haulers Reinforced 1 | . . . . . . . . . 1 Active Scanning Responses . | . . . . . . . . . . Cargo Convoy Interrupts 2 | . . . . . . . 1 . 1 Stealth | -11 -10 -10 -9 -9 -9 -9 -6 -6 -6 --------- Run | Yrd Mat Min Mat Sto Rec Scr Fac Was Fac Distress Signals 14 | . 3 . 5 1 . . 1 . 4 Communications Jammed 40 | . . . . . . . 40 . . Distress Signals 40 | . . . . . . . 40 . . Times Spotted 190 | . 23 7 60 7 3 . 37 15 38 Peak Tracking Total 11 | . 4 3 6 3 1 . 11 6 8 Tactical Retreats 10 | . 1 . 4 . . . 2 3 . Traps | -11 -10 -10 -9 -9 -9 -9 -6 -6 -6 ------- Run | Yrd Mat Min Mat Sto Rec Scr Fac Was Fac Traps Triggered 8 | . 3 . . . . . 2 . 3 Indirectly . | . . . . . . . . . . Trap Hack Attempts . | . . . . . . . . . . Triggered . | . . . . . . . . . . Disarmed . | . . . . . . . . . . Reprogrammed . | . . . . . . . . . . Reused . | . . . . . . . . . . Traps Extracted . | . . . . . . . . . . Installed . | . . . . . . . . . . Triggered . | . . . . . . . . . . Most Traps Carried 5 | . . 5 5 2 2 2 . . . Machines | -11 -10 -10 -9 -9 -9 -9 -6 -6 -6 ---------- Run | Yrd Mat Min Mat Sto Rec Scr Fac Was Fac Machines Disabled 15 | . 3 2 2 2 . . 3 . 3 Max in Single Turn 1 | . 1 1 1 1 . . 1 . 1 Garrison Access 1 | . . . . 1 . . . . . Machines Repaired . | . . . . . . . . . . Machines Dismantled . | . . . . . . . . . . Machines Sabotaged . | . . . . . . . . . . Overloaded Fab Kills . | . . . . . . . . . . Hacking | -11 -10 -10 -9 -9 -9 -9 -6 -6 -6 --------- Run | Yrd Mat Min Mat Sto Rec Scr Fac Was Fac Machines Accessed 56 | . 6 . 15 5 11 3 2 . 14 Terminals 34 | . 4 . 10 5 5 . 2 . 8 Fabricators 2 | . . . . . . . . . 2 Repair Stations 2 | . . . 2 . . . . . . Recycling Units 12 | . 2 . 1 . 6 . . . 3 Scanalyzers 2 | . . . 2 . . . . . . Garrison Access 1 | . . . . . . . . . 1 Total Hacks 162 | . 10 . 52 15 37 12 6 . 30 Successful 91 | . 6 . 31 8 19 12 1 . 14 Failed 68 | . 4 . 20 6 17 . 5 . 16 Catastrophic 19 | . 1 . 5 1 3 . 2 . 7 Database Lockouts 3 | . . . 1 1 1 . . . . Manual 95 | . 7 . 32 11 22 . 6 . 17 Terminals 108 | . 8 . 36 15 25 . 6 . 18 Fabricators 4 | . . . . . . . . . 4 Repair Stations 7 | . . . 7 . . . . . . Recycling Units 22 | . 2 . 2 . 12 . . . 6 Scanalyzers 7 | . . . 7 . . . . . . Garrison Access 2 | . . . . . . . . . 2 Terminal Hacks 46 | . . . 11 7 11 12 . . 5 Record 14 | . . . . . 2 12 . . . Robot Analysis 4 | . . . 1 . 2 . . . 1 Prototype ID Bank 8 | . . . 1 1 5 . . . 1 Open Door 1 | . . . . 1 . . . . . Level Access Points 1 | . . . . 1 . . . . . Branch Access Points 3 | . . . 1 1 . . . . 1 Emergency Access Points 1 | . . . 1 . . . . . . Terminal Index 1 | . . . 1 . . . . . . Unreport Threat 2 | . . . 2 . . . . . . Locate Traps 5 | . . . 1 2 1 . . . 1 Dispatch Records 1 | . . . 1 . . . . . . Recall Investigation 1 | . . . 1 . . . . . . Hauler Manifests 1 | . . . . . 1 . . . . Zone Layout 3 | . . . 1 1 . . . . 1 Fabricator Hacks 1 | . . . . . . . . . 1 Network Status 1 | . . . . . . . . . 1 Repair Station Hacks 6 | . . . 6 . . . . . . Scan Component 3 | . . . 3 . . . . . . Repair 3 | . . . 3 . . . . . . Recycling Unit Hacks 5 | . 2 . . . 1 . . . 2 Retrieve Components 5 | . 2 . . . 1 . . . 2 Scanalyzer 6 | . . . 6 . . . . . . Insert Component 5 | . . . 5 . . . . . . Analyze 1 | . . . 1 . . . . . . Garrison Access Hacks . | . . . . . . . . . . Unauthorized Hacks 27 | . 4 . 8 1 7 . 1 . 6 Terminals 18 | . 4 . 8 1 2 . 1 . 2 Botnet 7 | . 1 . 1 1 1 . 1 . 2 Skim 10 | . 3 . 7 . . . . . . Search 1 | . . . . . 1 . . . . Fabricators 1 | . . . . . . . . . 1 Overload 1 | . . . . . . . . . 1 Repair Stations . | . . . . . . . . . . Recycling Units 8 | . . . . . 5 . . . 3 Tunnel 5 | . . . . . 5 . . . . Fedlink 2 | . . . . . . . . . 2 Scrapoids 1 | . . . . . . . . . 1 Scanalyzers . | . . . . . . . . . . Garrison Access . | . . . . . . . . . . Data Cores Recovered . | . . . . . . . . . . Used . | . . . . . . . . . . Hacking Detections 40 | . 4 . 13 4 6 . 2 . 11 Full Trace Events 8 | . . . 1 . 5 . . . 2 Feedback Events . | . . . . . . . . . . Feedback Blocked . | . . . . . . . . . . Robot Schematics Acquired . | . . . . . . . . . . Robots Built . | . . . . . . . . . . Authchips . | . . . . . . . . . . Time . | . . . . . . . . . . Total Robot Build Rating . | . . . . . . . . . . Part Schematics Acquired 1 | . . . 1 . . . . . . Parts Built . | . . . . . . . . . . Authchips . | . . . . . . . . . . Time . | . . . . . . . . . . Total Part Build Rating . | . . . . . . . . . . Parts Repaired 3 | . . . 3 . . . . . . Time 84 | . . . 84 . . . . . . Parts Recycled . | . . . . . . . . . . Recycled Matter . | . . . . . . . . . . Retrieved Matter . | . . . . . . . . . . Retrieved Components 25 | . 13 . . . 9 . . . 3 Parts Scanalyzed 1 | . . . 1 . . . . . . Part Schematics Acquired 1 | . . . 1 . . . . . . Parts Damaged . | . . . . . . . . . . Bothacking | -11 -10 -10 -9 -9 -9 -9 -6 -6 -6 ------------ Run | Yrd Mat Min Mat Sto Rec Scr Fac Was Fac Used RIF Installer . | . . . . . . . . . . Robots Hacked 6 | . . . . . . . 3 . 3 Non-combat 3 | . . . . . . . 1 . 2 Combat 1 | . . . . . . . 1 . . Robot Hacks Applied 4 | . . . . . . . 2 . 2 parse_system 3 | . . . . . . . 2 . 1 check_alert 1 | . . . . . . . . . 1 Manual 4 | . . . . . . . 1 . 3 Relay Couplers Released 7 | . . . . 3 . . 4 . . Machine Destruction 3 | . . . . 3 . . . . . Programmers 4 | . . . . . . . 4 . . Fabnet Peak Effective % . | . . . . . . . . . . Robots Rewired . | . . . . . . . . . . Allies Hacked 1 | . . . . . . . 1 . . Hacks Repelled . | . . . . . . . . . . Allies | -11 -10 -10 -9 -9 -9 -9 -6 -6 -6 -------- Run | Yrd Mat Min Mat Sto Rec Scr Fac Was Fac Total Allies 23 | . . . . . . . 1 19 3 Largest Group 19 | . . . . . . . 1 19 2 Highest-Rated Group 702 | . . . . . . . 26 702 36 Highest-Rated Ally 50 | . . . . . . . 26 50 26 Total Orders . | . . . . . . . . . . Ally Attacks 59 | . . . . . . . . 59 . Total Damage 2463 | . . . . . . . . 2463 . Kills 6 | . . . . . . . . 6 . Allies Corrupted . | . . . . . . . . . . Allies Melted . | . . . . . . . . . . Intel | -11 -10 -10 -9 -9 -9 -9 -6 -6 -6 ------- Run | Yrd Mat Min Mat Sto Rec Scr Fac Was Fac Active Infowar (turns) 10083 | 8 230 242 2964 242 1223 3100 783 44 1247 Optics 2323 | . . 242 2081 . . . . . . Sensors 1412 | . . . . . . . 525 44 843 Terrain 431 | . . . . . . . . . 431 Seismic 6654 | 8 230 . 1541 242 1223 3100 310 . . Jamming 811 | . . . . . . . 767 44 . Robot Analysis Total 4 | . . . 1 . 2 . . . 1 Derelict Logs Recovered 1 | . . 1 . . . . . . . Drone Launches . | . . . . . . . . . . Drone Recoveries . | . . . . . . . . . . Exploration | -11 -10 -10 -9 -9 -9 -9 -6 -6 -6 ------------- Run | Yrd Mat Min Mat Sto Rec Scr Fac Was Fac Turns Passed 11829 | 82 909 533 2964 242 1223 3100 783 463 1530 Spaces Moved 5880 | 35 468 382 1497 133 485 1285 301 307 987 Core 115 | 2 3 3 1 . . . 2 104 . Treads 2382 | 33 174 . 22 . 482 1285 282 . 104 Legs 29 | . . 11 . . . . . . 18 Wheels 2929 | . 291 368 1474 133 3 . 17 . 643 Hover 425 | . . . . . . . . 203 222 Flight . | . . . . . . . . . . Fastest Speed 50 | 50 110 95 110 145 145 240 108 50 76 Average Speed 165 | 153 136 109 151 145 239 240 164 98 110 Slowest Speed 900 | 160 500 450 850 145 320 240 900 850 260 Overloaded Moves . | . . . . . . . . . . Propulsion Burnouts . | . . . . . . . . . . Robots Hopped . | . . . . . . . . . . Potential Cave-ins . | . . . . . . . . . . Cave-ins Triggered . | . . . . . . . . . . Exploration Rate (%) 59 | 4 80 85 92 28 91 90 9 94 25 Regions Visited 9 Branch Regions 4 Pre-discovered Areas 9 | . . . 3 . 5 . . . 1 Known Exits Taken 3 | . . . 1 1 1 . . . . Unknown Exits Taken 4 | 1 1 1 . . . 1 . . . Scrap Searched 9 | . . 1 . . . 8 . . . Spaces Dug 10 | . . . . . . . . . 10 Terrain Destroyed 188 | . . 28 52 . . . 65 . 43 Melee . | . . . . . . . . . . Projectile 48 | . . . . . . . 5 . 43 AOE 140 | . . 28 52 . . . 60 . . Terrain Rammed . | . . . . . . . . . . Walls Destroyed . | . . . . . . . . . . Machines Disabled . | . . . . . . . . . . Actions | -11 -10 -10 -9 -9 -9 -9 -6 -6 -6 --------- Run | Yrd Mat Min Mat Sto Rec Scr Fac Was Fac Total 7201 | 48 613 451 1904 154 514 1306 503 429 1279 Wait 496 | . 46 22 137 8 1 . 99 76 107 Move 5872 | 34 467 381 1496 132 484 1284 301 306 987 Hop . | . . . . . . . . . . Pick Up 80 | 2 13 9 21 . 4 7 6 2 16 Fast Attach 91 | 6 8 5 26 . 1 2 8 11 24 Attach 31 | . 3 3 5 . 2 . 13 . 5 Detach 11 | . . . 5 . . 1 3 . 2 Swap 46 | . 1 4 14 . 1 . 11 . 15 Drop 90 | . 1 2 43 . 4 9 5 14 12 Fire 449 | 6 74 25 153 14 17 . 53 20 87 Melee 3 | . . . . . . . 3 . . Ram 1 | . . . 1 . . . . . . Kick . | . . . . . . . . . . Crush 4 | . . . 3 . . . 1 . . Escape Stasis 24 | . . . . . . . . . 24 Rewire 3 | . . . . . . 3 . . . Trap . | . . . . . . . . . . Miscellaneous . | . . . . . . . . . . Route ------- -11/Scrapyard -10/Materials (discovered 3 exits: *Mat x2 / [*Min]) -10/Mines (discovered 2 exits: *Mat x2) -9/Materials (discovered 5 exits: *Mat x3 / *Min / *Sto) -9/Storage (discovered 2 exits: Mat / *Rec) -9/Recycling (discovered 2 exits: *Fac / *Scr) -9/Scraptown (discovered 2 exits: *Fac x2) -6/Factory -6/Waste -6/Factory (discovered 6 exits: *Fac x2 / Low x2 / Ext x2) History --------- Turn | Location | Event 10 | -11/Scrapyard | Discovered new exit (range 15) 83 | -11/Scrapyard | Entered Materials 317 | -10/Materials | Build established: Mutant 525 | -10/Materials | Lost 3 parts (1n1u1w) 539 | -10/Materials | Core integrity fell below 50% 584 | -10/Materials | Discovered new exit (range 7) 683 | -10/Materials | Discovered new exit (range 8) 783 | -10/Materials | Derelicts attacked the area 816 | -10/Materials | Discovered new exit (range 7) 992 | -10/Materials | Entered Mines 1052 | -10/Mines | Discovered new exit (range 14) 1055 | -10/Mines | Received a Rocket Launcher from a helpful Derelict 1208 | -10/Mines | Lost 4 parts (2n1u1w) 1273 | -10/Mines | Learned Materials garrison access intel 1275 | -10/Mines | Discovered new exit (range 11) 1377 | -10/Mines | Found a hidden stash of uninstalled traps 1525 | -10/Mines | Entered Materials 1525 | -9/Materials | Evolved 2 slots: Utility x2 1965 | -9/Materials | Build established: Scavenger-Mutant 2021 | -9/Materials | Discovered new exit (range 14) 2378 | -9/Materials | Repaired Lgt. Cannon 2411 | -9/Materials | Repaired Hvy. Assault Rifle 2772 | -9/Materials | Discovered new exit (range 10) 2789 | -9/Materials | Identified exit to Materials 2813 | -9/Materials | Central database locked down 2813 | -9/Materials | Identified exit to Mines 2813 | -9/Materials | Identified exit to Storage 3270 | -9/Materials | Core integrity fell below 50% 3319 | -9/Materials | Learned Storage terminal intel 3419 | -9/Materials | Learned location of 1 exit from Recycling 3452 | -9/Materials | Learned location of Zion (-7) 3506 | -9/Materials | Learned Storage stockpile data 3578 | -9/Materials | Learned location of 1 exit from Recycling 4193 | -9/Materials | Build established: Mutant 4278 | -9/Materials | Repaired Lgt. Armor Plating 4489 | -9/Materials | Entered Storage 4490 | -9/Storage | Identified exit to Recycling 4492 | -9/Storage | Loaded intel: 14 terminal locations 4548 | -9/Storage | Central database locked down 4657 | -9/Storage | Used back door to open Recycling access 4731 | -9/Storage | Entered Recycling 4732 | -9/Recycling | Identified exit to Scraptown 4732 | -9/Recycling | Identified exit to Factory 5896 | -9/Recycling | Scanned before Scraplab entrance 5930 | -9/Recycling | Entered Scraplab 5954 | -9/Recycling | Entered Scraptown 6374 | -9/Scraptown | Discovered new exit (range 11) 6562 | -9/Scraptown | Visited Red Mages 6576 | -9/Scraptown | Visited Cave Peace 6660 | -9/Scraptown | Visited Bundlers 6916 | -9/Scraptown | Visited Scrapoid Research Area 7013 | -9/Scraptown | Visited Fellowship of the Rings 7432 | -9/Scraptown | Visited The Evicted 7446 | -9/Scraptown | Visited Symbiants 7523 | -9/Scraptown | Visited UFD Registry 7523 | -9/Scraptown | Registered with UFD as "Boltsys" 7602 | -9/Scraptown | Visited Abandonware Association 7629 | -9/Scraptown | Learned abandonware demo "HACKBUD.EXE" 7687 | -9/Scraptown | Visited Curators Association 7773 | -9/Scraptown | Visited Research Penetration Think Tank 7915 | -9/Scraptown | Visited Scrap Suit Storage 7984 | -9/Scraptown | Visited Infowarlord's Domain 8001 | -9/Scraptown | Found Exp. Terrain Scan Processor 8101 | -9/Scraptown | Visited Chapter 10 8396 | -9/Scraptown | Visited A0-MCA Data Center 8410 | -9/Scraptown | Given a B- rating by A0-MCA 8413 | -9/Scraptown | Found A0-MCA's Component Scanner 8493 | -9/Scraptown | Visited Scrapoid Pod Storage 8896 | -9/Scraptown | Met Optimus 8896 | -9/Scraptown | Accepted into 0bPrime 8984 | -9/Scraptown | Visited Modified Component R&D 9049 | -9/Scraptown | Discovered new exit (range 3) 9054 | -9/Scraptown | Entered Factory 9054 | -6/Factory | Evolved 6 slots: Propulsion x4, Utility x2 9352 | -6/Factory | Build established: Scavenger-Mutant 9701 | -6/Factory | Destroyed 7 combat bots 9742 | -6/Factory | Lost 4 parts (3n1u) 9823 | -6/Factory | Cargo convoy interrupted 9837 | -6/Factory | Sucked down chute 9837 | -6/Factory | Entered Waste 9846 | -6/Waste | Spotted C-40 Crusher 9867 | -6/Waste | Lost 8 parts (5n1u2w) 9872 | -6/Waste | Spotted C-40 Crusher 9872 | -6/Waste | Spotted C-40 Crusher 9874 | -6/Waste | Spotted C-40 Crusher 9893 | -6/Waste | Crushed by Compactor (1 part destroyed, 1 dropped) 9894 | -6/Waste | Spotted C-40 Crusher 9903 | -6/Waste | Spotted C-40 Crusher 9913 | -6/Waste | Warlord forces began an assault 10020 | -6/Waste | Lost 4 allies 10115 | -6/Waste | Build established: Mutant 10267 | -6/Waste | Crushed by Compactor (1 part destroyed, 2 dropped) 10269 | -6/Waste | Discovered new exit (range 14) 10288 | -6/Waste | Crushed by Compactor (1 part destroyed, 1 dropped) 10289 | -6/Waste | Core integrity fell below 50% 10300 | -6/Waste | Identified exit to Factory 10300 | -6/Waste | Entered Factory 10461 | -6/Factory | Discovered new exit (range 15) 10473 | -6/Factory | Identified exit to Factory 10516 | -6/Factory | Discovered exit to Factory (range 14) 10704 | -6/Factory | P-60 Hacker assimilated allied Administrator 5b 10846 | -6/Factory | Build established: Scavenger-Mutant 10918 | -6/Factory | Lost 4 parts (3n1u) 11087 | -6/Factory | Identified exit to Lower Caves 11087 | -6/Factory | Identified exit to Extension 11231 | -6/Factory | Loaded intel: 8 recycling unit locations 11493 | -6/Factory | Core integrity fell below 20% 11564 | -6/Factory | Learned location of Protoforge (-3) 11685 | -6/Factory | Lost 4 parts (3n1u) 11814 | -6/Factory | Lost 4 parts (1p2u1w) 11824 | -6/Factory | Cargo convoy interrupted 11830 | -6/Factory | Destroyed by H-66 Slayer with Heavy Assault Rifle Last Messages --------------- 11798_ K-01 Serf collects debris. 11808_ Acquired 25 matter. 11809_ K-01 Serf collects debris. 11812_ Acquired Lgt. Nuclear Core. 11813_ K-01 Serf collects debris. 11820_ A-27 Freighter sends out distress signal. 11820_ K-01 Serf collects debris. 11823_ C-30 ARC bursts open, deploying its payload. 11823_ X-62 Marksman unfolds itself. 11823_ P-60 Hacker unfolds itself. 11823_ X-62 Marksman unfolds itself. 11823_ H-66 Slayer unfolds itself. 11823_ Slug penetrates Wall. 11823_ Penetrated by Slug. 11824_ ALERT: Cargo convoy interrupted, initiating access lockdown. 11826_ K-01 Serf collects debris. 11830_ Penetrated by Slug. 11830_ Slug penetrates Wall. Map ----- +----------------------------------------------------+ | ?????????????????????????# ### % ##### | | ?????????????????????????# """ " " ! ## ## * | | ?????????????????????????# """ "## ## ##[* | | ?????????????????????????# """ ### """ ## ### | | ?????????????????????????# #?# """ ######## | | ?????????????????????????########?# """ # """! | | ??????????????????????????????????# #] """ | | ?????????????????????????????????## """ # """ | | ??????????????????????????######### """ # | | ??????????????????? """ # | | ?????????????????????? ?######## ##+##### | | ?????????????????????? # # """ #?? | | ??????????????????????" # """ # """ #?? | | ????????????????????""" # """ + """ #?? | | ?????????????????????"" # """ # "%" ### | | ????????????>????????? # # " ## | | ??????????????????????? # !?# ###### ## | | ?????????????????????#?# ######## h% ##???# + | | ???????????????????????# ##T #### %###### ## | | ???????????????????????# = [ % # | | ???????????????????????# % # | | ???????????????????????+ [ + | | ?????????????????????? # # | | ???????????????????????# # | | ???????????????????????# ^^ ## | | ???????????????????????# @ ^^ % | | ???????????????????????# | | ????????????????????#??# ########### ##### | | ???????????????????????# ??????????# ##?####### | | ???????????????????????# ???????#??# #?#?????## | | ??????????????????????? ?? ???????# #?#??????# | | ??????????????????????? ??????????## #???????## | | ?????????????????????? ???????????# #????????# | | ?????????????????????? ???????????# #????????# | | ????????????????????"?" ???????????# #??? ???# | | ????????????????????"Y"????????????# # ???????# | | ????????????????????"""???????##???# # ?? ????+ | | ???????????????????????? ??????????# # ?? ????# | | ???????????????????????????#????#??# #????????# | | ???????????????????????? ??????????# #??????? ? | | ???????????????????????????????????# # ??? ???? | | ???????????????????????????????????# #???????#? | | ???????????????????????????????????# #????????? | | ???????????????????????????????? ??# ##???????? | | ???????????????????? ?????#??#????## #????? ?? | | ???????????????????????#??????????## #????????? | | ???????????????????????????????? ??# #?????? ## | | ???????????????????????? ??????# ??# #?????? # | | ?????????????????????? ????????# ??# #???????# | | ??????????????????????????????## ??# ##??????+ | +----------------------------------------------------+ Best States ------------- Heat Dissipation 70 Energy Generation 18 Energy Capacity 280 Matter Stores 300 Matter Capacity 300 Sight Range 18 Robot Scan Range 16 Terrain Scan Range 20 Terrain Scan Density 10 Jamming Range 12 Armor Coverage 450 Resistance: KI 20 Resistance: TH 20 Evasion (%) 50 Recoil Reduction 6 Item Schematics ----------------- Hcp. Storage Unit | -9/Materials | Scanalyzed Robot Schematics ------------------ None Fabricated ------------ Nothing Repaired ---------- Lgt. Cannon | 9% | -9/Materials Hvy. Assault Rifle | 2% | -9/Materials Lgt. Armor Plating | 28% | -9/Materials Alien Tech Used ----------------- None Achievements -------------- None Challenges ------------ None Game ------ Seed DamperScrapFemtoactuators Manual? 0 Play Time 01:22:47 Cumulative 140.3 hours Start 2025.07.25 @ 07:16:56 End 2025.07.25 @ 08:39:48 Sessions 1 Manual Loads 0 Difficulty Rogue Special Mode None Game No. 130 Rogue 130 Adventurer 0 Explorer 0 Win Type - Total 3 Types 2/0/1/0/0/0/0/0/0/0 Lore% 71 Gallery% 64 Achievement% 57 Wizard Run 0 Options --------- Layout 1 ASCII 0 Keyboard 0 Movement Numpad Keybinds 0 Fullscreen 1 Font 24/Smallcaps Map View 50x35 Zoom Use 0% Tactical HUD 1 Map Filters NONE Filters NONE Steam 1 RUN: b252dd37-af73-4ee3-a131-2f16eb44dcc7